Cogmind - Beta 11.1 @@@ ROGUE MODE // 2022.06.15 @ 23:44:38 Player: Delirus Result: Self-destructed Performance ------------- Evolutions (2) 1000 Regions Visited (6) 1200 Robots Destroyed (102) 510 Value Destroyed (3271) 3271 Prototype IDs (2) 40 Alien Tech Used (0) 0 Bonus (1472) 1472 TOTAL SCORE: 7493 Bonus ------- High Alert Combat Kills 621 Follower Combat Kills 151 Entered Garrisons 200 Used RIF Installer 500 Cogmind --------- Core Integrity 284/550 Matter 5/300 Energy 100/100 System Corruption 5% Temperature Hot (276) Movement Treading (490) Ox4 Location -8/Materials Parts ------- > --- POWER (1) -------- (None) > --- PROPULSION (3) --- Armored Treads Compact Wheel > --- UTILITY (5) ------ Huge Storage Unit Visual Processing Unit Improved Light Armor Plating Relay Coupler [Cutter] (24) Relay Coupler [Grunt] (24) > --- WEAPON (2) ------- Heavy Particle Cannon Improved Datajack > --- INVENTORY (25) --- Improved Ion Engine Light Treads Armored Treads Advanced Treads Improved Terrain Scanner Improved Light Armor Plating Improved Light Armor Plating Improved Light Armor Plating Relay Coupler [Swarmer] (32) Relay Coupler [Grunt] (28) Relay Coupler [Brawler] (25) Relay Coupler [Brawler] (24) Relay Coupler [Duelist] (25) Relay Coupler [Specialist] (22) Relay Coupler [Hunter] (18) Relay Coupler [Hunter] (17) Heavy Particle Cannon Heavy Particle Cannon Improved Light Cannon Assault Cannon Improved Datajack Katana Peak State ------------ > --- POWER ------------ Reinforced Ion Engine > --- PROPULSION ------- Armored Treads Armored Treads Compact Wheel > --- UTILITY ---------- Huge Storage Unit Visual Processing Unit Improved Light Armor Plating Improved Light Armor Plating Relay Coupler [Grunt] > --- WEAPON ----------- Heavy Particle Cannon Improved Datajack > --- INVENTORY -------- Improved Ion Engine Light Treads Armored Treads Advanced Treads Improved Terrain Scanner Improved Light Armor Plating Improved Light Armor Plating Relay Coupler [NC] Relay Coupler [Swarmer] Relay Coupler [Cutter] Relay Coupler [Grunt] Relay Coupler [Brawler] Relay Coupler [Brawler] Relay Coupler [Duelist] Relay Coupler [Specialist] Relay Coupler [Hunter] Relay Coupler [Hunter] Heavy Particle Cannon Heavy Particle Cannon Improved Light Cannon Assault Cannon Improved Datajack Katana [Rating: 33] Favorites ----------- Power Light Ion Engine Engine Light Ion Engine Power Core Light Nuclear Core Propulsion Light Treads Treads Light Treads Leg Aluminum Leg Wheel Compact Wheel Utility Improved Light Armor Plating Device Improved Heat Sink Storage Huge Storage Unit Processor Signal Interpreter Hackware Relay Coupler [Grunt] Protection Improved Light Armor Plating Weapon Improved Light Cannon Energy Gun Beam Rifle Energy Cannon Heavy Particle Cannon Ballistic Gun Heavy Assault Rifle Ballistic Cannon Improved Light Cannon Launcher Grenade Launcher Slashing Weapon Katana Special Melee Weapon Improved Datajack Build | -11 -10 -10 -9 -8 -8 -8 ------- Run | Scr Mat Min Mat Mat Gar Mat Slots Evolved 4 | . . . 2 2 . . Power . | . . . . . . . Propulsion 1 | . . . . 1 . . Utility 3 | . . . 2 1 . . Weapon . | . . . . . . . Parts Attached 108 | . 15 3 28 11 30 21 Power 10 | . . 2 2 1 4 1 Engine 9 | . . 2 2 1 3 1 Core 1 | . . . . . 1 . Reactor . | . . . . . . . Propulsion 24 | . 3 . 6 2 4 9 Treads 17 | . 2 . 3 1 4 7 Leg . | . . . . . . . Wheel 7 | . 1 . 3 1 . 2 Hover . | . . . . . . . Flight . | . . . . . . . Utility 17 | . 3 . 5 3 3 3 Device 1 | . . . 1 . . . Storage 3 | . 2 . 1 . . . Processor 2 | . . . 1 1 . . Hackware 3 | . . . . . . 3 Protection 8 | . 1 . 2 2 3 . Artifact . | . . . . . . . Weapon 57 | . 9 1 15 5 19 8 Energy Gun 11 | . . . 6 1 4 . Energy Cannon 3 | . . . . . 2 1 Ballistic Gun 5 | . . . 2 . 3 . Ballistic Cannon 15 | . 5 1 2 2 2 3 Launcher 12 | . 3 . 2 2 4 1 Special Weapon . | . . . . . . . Impact Weapon . | . . . . . . . Slashing Weapon 8 | . 1 . 3 . 4 . Piercing Weapon . | . . . . . . . Special Melee Weapon 3 | . . . . . . 3 Unidentified Prototypes . | . . . . . . . Parts Lost 13 | . . . 2 . 7 4 Power 4 | . . . . . 3 1 Propulsion 7 | . . . 2 . 3 2 Utility 1 | . . . . . 1 . Weapon 1 | . . . . . . 1 Highest Loss Streak 4 | . . . 1 . 4 3 To Critical Strikes . | . . . . . . . Average Slot Usage (%) 98 | . 98 100 97 100 99 98 Engine 8 | . 14 14 10 9 2 8 Core 2 | . . . . . 6 . Treads 17 | . 14 14 11 18 21 22 Wheel 8 | . 14 14 10 9 5 4 Device 2 | . . . 6 9 . . Storage 10 | . 14 14 11 9 9 9 Processor 11 | . . . 9 18 18 14 Protection 15 | . 13 14 15 9 17 17 Energy Gun 2 | . . . 7 5 2 . Energy Cannon 3 | . . . . . 6 6 Ballistic Gun 1 | . 1 . 2 . 2 . Ballistic Cannon 10 | . 23 18 9 4 4 6 Launcher 1 | . 2 9 . 7 . . Slashing Weapon 1 | . . . 1 . 2 . Naked Turns . | . . . . . . . Heaviest Build 107 | 12 36 38 100 96 101 107 Greatest Support 63 | 20 16 16 46 16 63 63 Greatest Overweight (x) 10 | . 2 2 9 5 6 10 Average Overweight (x) 3 | . 1 2 3 5 4 3 Largest Inventory Capacity 25 | . 15 15 25 25 25 25 Average Capacity 21 | . 12 15 19 25 25 25 Most Carried 25 | . 10 15 15 14 25 25 Average Carried 17 | . 9 13 14 11 21 23 Final Capacity 25 | 8 15 15 25 25 25 25 Final Carried 25 | 6 10 15 13 14 25 22 Class Distribution -------------------- 48% | Mutant 32% | Bothacker-Mutant 19% | Scavenger-Mutant Dominant Class ---------------- Mutant | -10/Materials Mutant | -10/Mines Mutant | -9/Materials Scavenger-Mutant | -8/Materials Bothacker-Mutant | -8/Garrison Bothacker-Mutant | -8/Materials Resources | -11 -10 -10 -9 -8 -8 -8 ----------- Run | Scr Mat Min Mat Mat Gar Mat Matter Collected 1866 | 200 164 107 403 155 597 240 Remotely . | . . . . . . . Salvage Created 2236 | . 247 30 548 225 636 550 Parts 191 | . 29 6 43 19 60 34 Haulers Intercepted 3 | . 1 . 1 . . 1 Recyclers Shooed 3 | . 1 . . 1 . 1 Parts Field Recycled . | . . . . . . . Retrieved Matter . | . . . . . . . Parts Self-Destructed . | . . . . . . . Prevented . | . . . . . . . Kills | -11 -10 -10 -9 -8 -8 -8 ------- Run | Scr Mat Min Mat Mat Gar Mat Combat Hostiles Destroyed 87 | . 9 3 20 10 30 15 Guns 16 | . . . 10 . 6 . Cannons 32 | . 4 . 4 1 14 9 AOE 39 | . 5 3 6 9 10 6 Classes Destroyed 13 | . 7 . 3 . 2 1 Worker 3 | . 1 . . . . 2 Builder 2 | . 1 1 . . . . Hauler 3 | . 1 . 1 . . 1 Recycler 4 | . 1 . 1 1 . 1 Operator 1 | . 1 . . . . . Watcher 2 | . . . 1 . . 1 Swarmer 47 | . 6 3 11 6 16 5 Grunt 18 | . 3 . 4 3 4 4 Brawler 4 | . . . . . 2 2 Duelist 3 | . . . 1 1 1 . Protector 1 | . . . . . . 1 Sentry 13 | . . . 4 . 6 3 Hunter 1 | . . . . . 1 . Best Kill Streak 9 | . 5 4 5 5 4 9 Combat Bots Only 6 | . 4 3 5 4 4 6 Max Kills in Single Turn 3 | . 3 3 3 3 2 3 Gunslinging . | . . . . . . . Exploded 3 | . 3 2 3 3 2 2 Melee . | . . . . . . . Uniques/NPCs Destroyed . | . . . . . . . Combat | -11 -10 -10 -9 -8 -8 -8 -------- Run | Scr Mat Min Mat Mat Gar Mat Damage Taken 3542 | . 363 6 803 318 1096 956 Core 432 | . 41 6 119 29 111 126 Absorbed by Shields . | . . . . . . . Core Remaining (%) 83 | 100 . 81 70 . . . Volleys Fired 175 | . 17 2 43 14 62 37 Largest 2 | . 2 1 2 2 2 2 Hottest 119 | . 78 30 114 95 114 119 Shots Fired 327 | . 34 2 85 27 125 54 Gun 105 | . . . 46 12 47 . Cannon 190 | . 29 . 34 10 68 49 Launcher 32 | . 5 2 5 5 10 5 Special . | . . . . . . . Kinetic 162 | . 29 . 45 10 62 16 Thermal 133 | . . . 35 12 53 33 Explosive 32 | . 5 2 5 5 10 5 Electromagnetic . | . . . . . . . Robot Hit Streak 11 | . 4 2 7 3 11 7 Robot Miss Streak 7 | . 4 . 3 2 7 2 Penetration Max . | . . . . . . . Secondary Targets 2 | . . . 2 . . . Max Gunslinging Chain 1 | . . . 1 . . . Shots Hit Robots 189 | . 14 1 48 9 71 46 Core Hits 166 | . 17 4 29 16 67 33 Critical Kills . | . . . . . . . Critical Parts Destroyed . | . . . . . . . Critical Strikes 3 | . . . . 1 . 2 Blast 3 | . . . . 1 . 2 Melee Attacks 67 | . 1 . 13 . 34 19 Impact . | . . . . . . . Slashing 48 | . 1 . 13 . 34 . Piercing . | . . . . . . . Sneak Attacks 7 | . . . . . . 7 Combat Hostiles . | . . . . . . . Follow-up Attacks . | . . . . . . . Damage Inflicted 6173 | . 653 143 1377 696 1695 1609 Guns 985 | . . . 524 57 404 . Cannons 2561 | . 391 . 453 149 770 798 Explosions 2610 | . 250 143 398 490 521 808 Melee . | . . . . . . . Ramming 17 | . 12 . 2 . . 3 Kinetic 1838 | . 391 . 527 149 548 223 Thermal 1825 | . . . 567 57 626 575 Explosive 2416 | . 250 143 204 490 521 808 Electromagnetic 77 | . . . 77 . . . Impact . | . . . . . . . Slashing . | . . . . . . . Piercing . | . . . . . . . Highest Corruption 5 | . 2 2 . . 3 5 Average Corruption 3 | . 1 2 . . 3 4 Corruption Purged . | . . . . . . . Corruption Blocked . | . . . . . . . Effects 51 | . 3 11 . . 14 23 Message Errors 14 | . . 2 . . 4 8 Matter Fused 14 | . . 2 . . 5 7 Heat Flow Errors 3 | . . . . . . 3 Energy Discharges 3 | . . 3 . . . . Parts Rejected 1 | . . 1 . . . . Data Loss (minor) 8 | . . 2 . . 4 2 Data Loss (major) 5 | . 3 1 . . . 1 Misfires 2 | . . . . . 1 1 Weapon Failures 1 | . . . . . . 1 Overload Shots . | . . . . . . . Overflow Damage 38 | . 4 . 18 . 5 11 Projectiles 9 | . 4 . . . 5 . Explosions 29 | . . . 18 . . 11 Melee . | . . . . . . . Knockbacks 13 | . 4 . 2 1 3 3 Impact . | . . . . . . . Kinetic 13 | . 4 . 2 1 3 3 Secondary . | . . . . . . . Self-Inflicted Damage 332 | . 37 . 28 42 79 146 Shots 10 | . 1 . 1 2 2 4 Rammed 3 | . 1 . 1 . . 1 Targets Rammed 3 | . 1 . 1 . . 1 Kicked . | . . . . . . . Crushed . | . . . . . . . Highest Temperature 444 | . 182 . 378 11 252 444 Average Temperature 86 | . 50 . 107 7 58 124 Received Heat Transfer 876 | . 105 . 195 63 252 261 Effects 3 | . . . 1 . . 2 Shutdowns 2 | . . . 1 . . 1 Short Circuit 1 | . . . . . . 1 Siege Activations . | . . . . . . . Robots Corrupted . | . . . . . . . Combat Hostiles . | . . . . . . . Parts Fried . | . . . . . . . Impact Corruptions . | . . . . . . . Robots Melted . | . . . . . . . Combat Hostiles . | . . . . . . . Parts Melted 2 | . . . . . . 2 Heat Transferred 2941 | . . . 1125 148 835 833 Parts Sabotaged . | . . . . . . . Parts Stolen . | . . . . . . . Parts Stripped . | . . . . . . . Power Chain Reactions . | . . . . . . . Missiles Intercepted . | . . . . . . . Alert | -11 -10 -10 -9 -8 -8 -8 ------- Run | Scr Mat Min Mat Mat Gar Mat Peak Influence 1368 | . 279 177 483 509 1368 992 Initial 666 | . . 42 21 191 330 666 Average 544 | . 156 105 215 393 992 789 Maximum Alert Level 4 | . 1 . 2 2 4 3 Low Security (%) 32 | . 59 100 55 11 . . Level 1 12 | . 40 . 21 44 1 . Level 2 17 | . . . 23 43 17 25 Level 3 23 | . . . . . 36 74 Level 4 14 | . . . . . 44 . Level 5 . | . . . . . . . High Security . | . . . . . . . Max Security . | . . . . . . . Squads Dispatched 6 | . 1 . 2 . . 3 Investigation 2 | . . . 1 . . 1 Extermination . | . . . . . . . Reinforcement 3 | . 1 . 1 . . 1 Assault 1 | . . . . . . 1 Garrison . | . . . . . . . Intercept . | . . . . . . . Searches Triggered . | . . . . . . . Construction Impeded 1 | . . . 1 . . . Haulers Reinforced . | . . . . . . . Active Scanning Responses . | . . . . . . . Cargo Convoy Interrupts . | . . . . . . . Stealth | -11 -10 -10 -9 -8 -8 -8 --------- Run | Scr Mat Min Mat Mat Gar Mat Distress Signals 5 | . 1 . 2 . . 2 Communications Jammed . | . . . . . . . Distress Signals . | . . . . . . . Times Spotted 136 | . 20 5 33 13 34 31 Peak Tracking Total 9 | . 6 3 7 7 7 9 Tactical Retreats 4 | . . . . 2 2 . Traps | -11 -10 -10 -9 -8 -8 -8 ------- Run | Scr Mat Min Mat Mat Gar Mat Traps Triggered 13 | . 2 . 2 . 9 . Indirectly . | . . . . . . . Trap Hack Attempts . | . . . . . . . Triggered . | . . . . . . . Disarmed 13 | . 3 . 10 . . . Reprogrammed . | . . . . . . . Reused . | . . . . . . . Traps Extracted . | . . . . . . . Installed . | . . . . . . . Triggered . | . . . . . . . Most Traps Carried 3 | . . 3 3 . . . Machines | -11 -10 -10 -9 -8 -8 -8 ---------- Run | Scr Mat Min Mat Mat Gar Mat Machines Disabled 22 | . 3 1 9 . 5 4 Max in Single Turn 3 | . 2 1 3 . 1 2 Garrison Relay 4 | . . . . . 4 . Machines Sabotaged . | . . . . . . . Garrisons Compromised . | . . . . . . . Overloaded Fab Kills . | . . . . . . . Hacking | -11 -10 -10 -9 -8 -8 -8 --------- Run | Scr Mat Min Mat Mat Gar Mat Machines Accessed 19 | . 5 . 8 3 . 3 Terminals 16 | . 4 . 8 2 . 2 Fabricators . | . . . . . . . Repair Stations . | . . . . . . . Recycling Units 1 | . 1 . . . . . Scanalyzers . | . . . . . . . Garrison Access 2 | . . . . 1 . 1 Total Hacks 65 | . 19 . 32 5 . 9 Successful 38 | . 11 . 19 4 . 4 Failed 27 | . 8 . 13 1 . 5 Catastrophic 6 | . 1 . 2 1 . 2 Database Lockouts . | . . . . . . . Manual 44 | . 13 . 19 4 . 8 Terminals 61 | . 18 . 32 4 . 7 Fabricators . | . . . . . . . Repair Stations . | . . . . . . . Recycling Units 1 | . 1 . . . . . Scanalyzers . | . . . . . . . Garrison Access 3 | . . . . 1 . 2 Terminal Hacks 21 | . 6 . 14 1 . . Prototype ID Bank 1 | . . . 1 . . . Level Access Points 1 | . 1 . . . . . Terminal Index 2 | . . . 1 1 . . Garrison Index 1 | . . . 1 . . . Alert Level 2 | . . . 2 . . . Locate Traps 2 | . 1 . 1 . . . Disarm Traps 4 | . 1 . 3 . . . Dispatch Records 1 | . . . 1 . . . Recall Reinforcements 1 | . 1 . . . . . Hauler Manifests 2 | . 1 . 1 . . . Registered Components 1 | . . . 1 . . . Zone Layout 3 | . 1 . 2 . . . Fabricator Hacks . | . . . . . . . Repair Station Hacks . | . . . . . . . Recycling Unit Hacks 1 | . 1 . . . . . Retrieve Matter 1 | . 1 . . . . . Scanalyzer . | . . . . . . . Garrison Access Hacks 2 | . . . . 1 . 1 Unlock Access 1 | . . . . 1 . . Coupler Status 1 | . . . . . . 1 Unauthorized Hacks 14 | . 4 . 5 2 . 3 Terminals 13 | . 4 . 5 2 . 2 Botnet 9 | . 2 . 4 2 . 1 Operators 4 | . 2 . 1 . . 1 Fabricators . | . . . . . . . Repair Stations . | . . . . . . . Recycling Units . | . . . . . . . Scanalyzers . | . . . . . . . Garrison Access 1 | . . . . . . 1 Eject 1 | . . . . . . 1 Data Cores Recovered . | . . . . . . . Used . | . . . . . . . Hacking Detections 17 | . 4 . 8 3 . 2 Full Trace Events 1 | . . . 1 . . . Feedback Events . | . . . . . . . Feedback Blocked . | . . . . . . . Robot Schematics Acquired . | . . . . . . . Robots Built . | . . . . . . . Authchips . | . . . . . . . Time . | . . . . . . . Total Robot Build Rating . | . . . . . . . Part Schematics Acquired . | . . . . . . . Parts Built . | . . . . . . . Authchips . | . . . . . . . Time . | . . . . . . . Total Part Build Rating . | . . . . . . . Parts Repaired . | . . . . . . . Time . | . . . . . . . Parts Recycled . | . . . . . . . Recycled Matter . | . . . . . . . Retrieved Matter 100 | . 100 . . . . . Retrieved Components . | . . . . . . . Parts Scanalyzed . | . . . . . . . Part Schematics Acquired . | . . . . . . . Parts Damaged . | . . . . . . . Bothacking | -11 -10 -10 -9 -8 -8 -8 ------------ Run | Scr Mat Min Mat Mat Gar Mat Used RIF Installer 1 | . . . . . 1 . Robots Hacked 4 | . . . . . . 4 Non-combat 3 | . . . . . . 3 Combat 1 | . . . . . . 1 Robot Hacks Applied 5 | . . . . . . 5 parse_system 1 | . . . . . . 1 find_recycling 1 | . . . . . . 1 purge_threat 1 | . . . . . . 1 link_fov 1 | . . . . . . 1 overwrite_iff 1 | . . . . . . 1 Relay Couplers Released 18 | . . . . . 15 3 Ejected 3 | . . . . . . 3 Machine Destruction 15 | . . . . . 15 . Attached 3 | . . . . . . 3 Fabnet Peak Effective % . | . . . . . . . Robots Rewired . | . . . . . . . Allies Hacked . | . . . . . . . Hacks Repelled . | . . . . . . . Allies | -11 -10 -10 -9 -8 -8 -8 -------- Run | Scr Mat Min Mat Mat Gar Mat Total Allies 3 | . . 2 . . . 1 Largest Group 2 | . . 2 1 . . 1 Highest-Rated Group 39 | . . 39 31 . . 16 Highest-Rated Ally 31 | . . 31 31 . . 16 Total Orders . | . . . . . . . Ally Attacks 23 | . . 6 11 . . 6 Total Damage 327 | . . 105 145 . . 77 Kills 5 | . . 2 3 . . . Allies Corrupted . | . . . . . . . Allies Melted 1 | . . . . . . 1 Intel | -11 -10 -10 -9 -8 -8 -8 ------- Run | Scr Mat Min Mat Mat Gar Mat Robot Analysis Total . | . . . . . . . Derelict Logs Recovered 3 | . . 3 . . . . Drone Launches . | . . . . . . . Drone Recoveries . | . . . . . . . Exploration | -11 -10 -10 -9 -8 -8 -8 ------------- Run | Scr Mat Min Mat Mat Gar Mat Turns Passed 6881 | . 875 687 1792 221 2241 1065 Spaces Moved 3463 | 1 630 506 906 89 912 419 Core . | . . . . . . . Treads 609 | . . . 115 . 318 176 Legs 1 | 1 . . . . . . Wheels 2853 | . 630 506 791 89 594 243 Hover . | . . . . . . . Flight . | . . . . . . . Fastest Speed 100 | 120 100 130 125 175 175 190 Average Speed 169 | 120 121 130 169 175 204 212 Slowest Speed 320 | 120 130 130 320 175 240 320 Overloaded Moves . | . . . . . . . Propulsion Burnouts . | . . . . . . . Robots Hopped . | . . . . . . . Cave-ins Triggered . | . . . . . . . Exploration Rate (%) 55 | 1 90 95 68 14 93 30 Regions Visited 6 Branch Regions 1 Pre-discovered Areas 3 | . . 3 . . . . Known Exits Taken 3 | . . 1 1 1 . . Unknown Exits Taken 2 | 1 1 . . . . . Scrap Searched 1 | . . 1 . . . . Spaces Dug 44 | . 1 8 6 26 3 . Terrain Destroyed 223 | . 22 15 48 42 58 38 Melee 10 | . 1 . 6 . 3 . Projectile 18 | . . . 5 . 1 12 AOE 195 | . 21 15 37 42 54 26 Terrain Rammed . | . . . . . . . Walls Destroyed . | . . . . . . . Machines Disabled . | . . . . . . . Actions | -11 -10 -10 -9 -8 -8 -8 --------- Run | Scr Mat Min Mat Mat Gar Mat Total 4056 | . 699 533 1045 124 1121 534 Wait 94 | . 20 14 27 7 4 22 Move 3456 | . 629 505 905 88 910 419 Hop . | . . . . . . . Pick Up 78 | . 8 7 14 3 39 7 Fast Attach 11 | . 3 1 5 . 1 1 Attach 17 | . . . 5 2 6 4 Detach . | . . . . . . . Swap 80 | . 12 2 18 9 23 16 Drop 57 | . 8 2 14 1 24 8 Fire 175 | . 17 2 43 14 62 37 Melee 67 | . 1 . 13 . 34 19 Ram 2 | . 1 . 1 . . . Kick . | . . . . . . . Crush 1 | . . . . . . 1 Escape Stasis 18 | . . . . . 18 . Rewire . | . . . . . . . Trap . | . . . . . . . Miscellaneous . | . . . . . . . Route ------- -11/Scrapyard -10/Materials (discovered 4 exits: *Mat x3 / [*Min]) -10/Mines (discovered 2 exits: *Mat x2) -9/Materials (discovered 2 exits: *Mat / *Min) -8/Materials -8/Garrison (discovered 3 exits: *Mat x3) -8/Materials History --------- Turn | Location | Event 1 | -11/Scrapyard | Discovered new exit (range 0) 1 | -11/Scrapyard | Entered Materials 88 | -10/Materials | Identified exit to Materials 311 | -10/Materials | Build established: Mutant 341 | -10/Materials | Discovered new exit (range 15) 876 | -10/Materials | Entered Mines 990 | -10/Mines | Found a hidden stash of uninstalled traps 1049 | -10/Mines | Learned location of Zion (-7) 1189 | -10/Mines | Discovered exit to Materials (range 8) 1482 | -10/Mines | Discovered exit to Materials (range 10) 1491 | -10/Mines | Learned location of Mines (-9) 1563 | -10/Mines | Entered Materials 1563 | -9/Materials | Accompanied by 1 ally 1563 | -9/Materials | Evolved 2 slots: Utility x2 1568 | -9/Materials | Led the pair of lost Derelicts to an unsafe place 1860 | -9/Materials | Discovered new exit (range 16) 2958 | -9/Materials | Identified exit to Mines 3266 | -9/Materials | Build established: Scavenger-Mutant 3268 | -9/Materials | Discovered new exit (range 15) 3353 | -9/Materials | Identified exit to Materials 3355 | -9/Materials | Entered another Materials area 3355 | -8/Materials | Evolved 2 slots: Propulsion x1, Utility x1 3570 | -8/Materials | Identified exit to Garrison 3576 | -8/Materials | Entered Garrison 3682 | -8/Garrison | Lost 4 parts (2p1n1u) 3690 | -8/Garrison | Triggered checkpoint 3848 | -8/Garrison | Triggered checkpoint 4001 | -8/Garrison | Triggered checkpoint 4049 | -8/Garrison | Triggered checkpoint 4194 | -8/Garrison | Triggered checkpoint 4371 | -8/Garrison | Discovered new exit (range 11) 4388 | -8/Garrison | Identified exit to Materials 4399 | -8/Garrison | Installed Relay Interface Framework 4462 | -8/Garrison | Garrison Relay disabled 4655 | -8/Garrison | Garrison Relay disabled 4821 | -8/Garrison | Triggered checkpoint 4911 | -8/Garrison | Triggered checkpoint 4958 | -8/Garrison | Build established: Bothacker-Mutant 4977 | -8/Garrison | Discovered exit to Materials (range 16) 5204 | -8/Garrison | Garrison Relay disabled 5500 | -8/Garrison | Triggered checkpoint 5560 | -8/Garrison | Garrison Relay disabled 5630 | -8/Garrison | Discovered exit to Materials (range 16) 5817 | -8/Garrison | Entered Materials 6217 | -8/Materials | First assault squad dispatched 6351 | -8/Materials | Lost 3 parts (2n1w) 6882 | -8/Materials | Self-destructed Last Messages --------------- Purged threat record, alert level lowered. 06783_ Sneak attack on O-24 Administrator. 06783_ Jacked O-24 Administrator... >>link_fov Established visual feed link, T-100 until cutoff. 06804_ K-01 Serf cleans the Processing Tank. 06808_ System corrupted: Matter fused (-8). 06809_ K-01 Serf cleans the Processing Tank. 06831_ >> link_fov: Feed link from O-24 Administrator lost. 06836_ Dropped Imp. Light Armor Plating. 06836_ Acquired Imp. Light Armor Plating. 06854_ Y-45 Defender destroyed. 06856_ System corrupted: Matter fused (-7). 06869_ Jacked L-31 Rogue... 06873_ U-05 Engineer builds a Wall. 06874_ System corrupted: Matter fused (-4). 06874_ Critical hit (Burn: +37). 06879_ Arm. Treads severed. 06882_ U-05 Engineer builds a Wall. 06882_ Rnf. Ion Engine destroyed. Map ----- +----------------------------------------------------+ | ?????????# # #?????? | | ?????????# # #?????? | | ?????????# # ###+########?? | | ??????????? # ############+#### #?? | | #############+### #?????# # * #?? | | ####### # #?? | | + # """ #?? | | ####### # " " """ #?? | | ##################+######## # "R" """ #?? | | """"""" #????# #??# # """ #?? | | """"""" #????# """ """ #??# # #?? | | """"""" #????# """ T" ##?# ###########?? | | """"""" #????# """ """ # #######+####???????????? | | """"""" #????# # ! #????????????? | | #????# # ! """ #????????????? | | [ #????# # """""#????????????? | | ] #????# # """""#????????????? | | #########????########### """""#????????????? | | ????????????????????#??# """ #????????????? | | ????????????????????? ?+ #????????????? | | ?????????????????????# ###+#########????????????? | | ?????????????????????# #????????????????????? | | ?????????????????????#### #????????????????????? | | ????????????????????????# #????????????????????? | | ????????????????????????# #????????????????????? | | ????????????????????????#@ #????????????????????? | | ????????????????????????#l #????????????????????? | | ????????????????????????# ;#???????????????????? | | ????????????????????????+ ##???????????????????? | | ????????????????????????# #????????????????????? | | ????????????????????????# g#????????????????????? | | ???????????????????????? =%[????????????????????? | | ???????????????????????? ![????????????????????? | | ???????????????????????? ????????????????????? | | ???????????????????????? u #???????????????????? | | ????????????????????????#####???????????????????? | | ?????????????????????????? ????????????????????? | | ?????????????????????????? ????????????????????? | | ?????????????????????????? ????????????????????? | | ?????????????????????????? ????????????????????? | | ?????????????????????????? ????????????????????? | | ?????????????????????????? ????????????????????? | | ?????????????????????????? ????????????????????? | | ????????????????????????????????????????????????? | | ????????????????????????????????????????????????? | | ????????????????????????????????????????????????? | | ????????????????????????????????????????????????? | | ????????????????????????????????????????????????? | | | | | +----------------------------------------------------+ Best States ------------- Heat Dissipation 45 Energy Generation 14 Energy Capacity 265 Matter Stores 300 Matter Capacity 300 Sight Range 18 Terrain Scan Density 10 Armor Coverage 300 Evasion (%) 40 Recoil Reduction 3 Relay Coupler Types 2 Relay Coupler Value 48 Item Schematics ----------------- None Robot Schematics ------------------ None Fabricated ------------ Nothing Alien Tech Used ----------------- None Achievements -------------- GoHome() Challenges ------------ None Game ------ Seed ShockRestorationDetector Manual? 0 Play Time 01:17:43 Cumulative 20.6 hours Start 2022.06.15 @ 22:23:25 End 2022.06.15 @ 23:44:38 Sessions 1 Manual Loads 0 Difficulty Rogue Special Mode None Game No. 25 Rogue 25 Adventurer 0 Explorer 0 Win Type - Total 0 Types 0/0/0/0/0/0/0/0/0 Lore% 8 Gallery% 22 Achievement% 21 Wizard Run 0 Options --------- ASCII 0 Keyboard 0 Movement Numpad Keybinds 0 Fullscreen 1 Font 12/Smallcaps Map View 83x54 Tactical HUD 1 Map Filters NONE Filters NONE Steam 1 RUN: f29690d4-cf73-4f0a-b5ee-26b921cbc486